bitfinex/quotes_BTCUSD_20230111
["timestamp","ask_amount","ask_price","bid_price","bid_amount"]
[1673398212215,0.17864623,17487.0,17486.0,3.14702899]
[1673398212446,0.17864623,17487.0,17486.0,3.6518783]
[1673398212801,0.17864623,17487.0,17486.0,3.14702899]
[1673398213229,0.17864623,17487.0,17486.0,3.67365705]
[1673398213499,0.17864623,17487.0,17486.0,2.97690075]
[1673398213761,0.17864623,17487.0,17486.0,3.14702899]
[1673398215901,0.17864623,17487.0,17486.0,3.86986194]
[1673398216440,0.17864623,17487.0,17486.0,2.82361661]
[1673398217517,0.17864623,17487.0,17486.0,1.92966894]
[1673398217775,0.17864623,17487.0,17486.0,2.22960495]
[1673398221121,0.19064623,17487.0,17486.0,2.28760495]
[1673398221384,0.16764623,17487.0,17486.0,2.16666616]
[1673398221635,0.17664623,17487.0,17486.0,2.21866616]
[1673398221904,0.17664623,17487.0,17486.0,2.21860495]
[1673398222423,0.17664623,17487.0,17486.0,2.21866616]
[1673398223728,0.17664623,17487.0,17486.0,2.57768616]
[1673398223985,0.17664623,17487.0,17486.0,2.21866616]
[1673398225070,0.17664623,17487.0,17486.0,2.57768616]
[1673398225916,0.17664623,17487.0,17486.0,2.21866616]
[1673398228573,0.17664623,17487.0,17486.0,2.57768616]
[1673398229117,0.17664623,17487.0,17486.0,2.7478144]
[1673398229357,0.17658022,17487.0,17486.0,2.7478144]
[1673398229619,0.17658022,17487.0,17486.0,2.3887944]
[1673398230141,0.17658022,17487.0,17486.0,2.21866616]
[1673398230369,0.17658022,17487.0,17486.0,2.3887944]
[1673398230646,0.17658022,17487.0,17486.0,2.21866616]
[1673398231195,0.17658022,17487.0,17486.0,2.21856317]
[1673398231690,0.17658022,17487.0,17486.0,2.38869141]
[1673398232697,0.17658022,17487.0,17486.0,2.99771141]
[1673398232939,0.17658022,17487.0,17486.0,3.06220854]
[1673398234481,0.17658022,17487.0,17486.0,2.5330603]
[1673398236286,0.17658022,17487.0,17486.0,3.06220854]
[1673398238874,0.17658022,17487.0,17486.0,2.33937559]
[1673398239420,0.17658022,17487.0,17486.0,2.59417265]
[1673398239656,0.17658022,17487.0,17486.0,3.30424087]
[1673398239936,0.17658022,17487.0,17486.0,3.76000632]
[1673398240204,0.17658022,17487.0,17486.0,4.00941782]
[1673398242253,0.17658022,17487.0,17486.0,4.17980138]
[1673398243261,0.17658022,17487.0,17486.0,4.77566343]
[1673398243526,0.17658022,17487.0,17486.0,4.17980138]
[1673398243792,0.17658022,17487.0,17486.0,4.8032814]
[1673398244015,0.17658022,17487.0,17486.0,4.17980138]
[1673398244280,0.17658022,17487.0,17486.0,4.35159457]
[1673398244552,0.17658022,17487.0,17486.0,4.35174065]
[1673398245838,0.17658022,17487.0,17486.0,4.01089858]
[1673398246106,0.17658022,17487.0,17486.0,4.22909858]
[1673398246403,0.17658022,17487.0,17486.0,3.80250833]
[1673398246635,0.17658022,17487.0,17486.0,4.81100833]
[1673398248906,0.17658022,17487.0,17486.0,4.2369141]
[1673398249432,0.17658022,17487.0,17486.0,4.57767927]
[1673398252745,0.17658022,17487.0,17486.0,5.09209562]
[1673398253242,0.17658022,17487.0,17486.0,4.57767927]
[1673398253479,0.17658022,17487.0,17486.0,5.16906462]
[1673398253731,0.17658022,17487.0,17486.0,4.57767927]
[1673398254782,0.17647603,17487.0,17486.0,4.57767927]
[1673398255863,0.17647603,17487.0,17486.0,4.35947927]
[1673398256063,0.17647603,17487.0,17486.0,4.0187141]
[1673398256346,0.17647603,17487.0,17486.0,4.35938211]
[1673398257956,0.17647603,17487.0,17486.0,4.0187141]
[1673398259266,0.014,17487.0,17486.0,4.0187141]
[1673398259946,0.014,17487.0,17486.0,4.6187141]
[1673398260487,0.014,17487.0,17486.0,4.95945848]
[1673398261006,0.014,17487.0,17486.0,5.24536848]
[1673398261516,0.014,17487.0,17486.0,4.9046241]
[1673398262305,0.014,17487.0,17486.0,4.47871833]
[1673398262549,0.014,17487.0,17486.0,4.90464859]
[1673398263062,0.014,17487.0,17486.0,4.47871833]
[1673398265151,0.014,17487.0,17486.0,5.14226988]
[1673398265396,0.01,17491.0,17487.0,0.02228458]
[1673398265662,0.13333334,17492.0,17490.0,1.02566668]
[1673398265663,0.09333334,17492.0,17490.0,1.02566668]
[1673398265913,0.09333334,17492.0,17491.0,4.62263213]
[1673398266179,0.09333334,17492.0,17491.0,4.93113213]
[1673398266419,0.09333334,17492.0,17491.0,4.69353424]
[1673398266668,0.09333334,17492.0,17491.0,4.94353424]
[1673398266926,0.09333334,17492.0,17491.0,5.00855797]
[1673398267182,0.09333334,17492.0,17491.0,4.3335325]
[1673398267716,0.09433334,17492.0,17491.0,4.619933]
[1673398267975,0.03028003,17495.0,17492.0,0.09432]
[1673398268262,0.03028003,17495.0,17493.0,3.35562382]
[1673398268530,0.03028003,17495.0,17494.0,2.61385495]
[1673398268816,0.03028003,17495.0,17494.0,2.8681949]
[1673398269080,0.03028003,17495.0,17494.0,3.00471567]
[1673398269081,0.03228003,17495.0,17494.0,3.00471567]
[1673398269335,0.03228003,17495.0,17494.0,3.72189522]
[1673398269622,0.03228003,17495.0,17494.0,4.7193934]
[1673398269877,0.03228003,17495.0,17494.0,5.1393914]
[1673398270133,0.03028003,17495.0,17494.0,5.39401]
[1673398270404,0.03128003,17495.0,17494.0,5.27158069]
[1673398270657,0.03128003,17495.0,17494.0,4.72977089]
[1673398271188,0.03128003,17495.0,17494.0,4.59697364]
[1673398271458,0.03128003,17495.0,17494.0,4.05516384]
[1673398271963,0.03128003,17495.0,17494.0,4.59697364]
[1673398272285,0.03128003,17495.0,17494.0,4.05516384]
[1673398272494,0.03128003,17495.0,17494.0,0.389]
[1673398272495,1.40584848,17495.0,17494.0,0.389]
[1673398272770,1.52692559,17495.0,17494.0,0.389]
[1673398273544,2.06360348,17495.0,17492.0,1.18069162]
[1673398273807,2.06360348,17495.0,17492.0,0.03735062]
[1673398273808,0.1634,17493.0,17492.0,0.03735062]
[1673398274074,1.46424153,17493.0,17492.0,0.03735062]
[1673398274329,0.684155,17493.0,17492.0,0.03741181]
[1673398274597,0.162,17493.0,17492.0,0.85910081]
[1673398274909,0.192,17493.0,17492.0,1.42735778]
[1673398275118,0.162,17493.0,17492.0,1.99098559]
[1673398275394,0.191,17493.0,17492.0,2.00298559]
[1673398275655,0.191,17493.0,17492.0,2.00304678]
[1673398275907,0.191,17493.0,17492.0,2.30304678]
[1673398276195,0.191,17493.0,17492.0,2.30298559]
[1673398276427,0.162,17493.0,17492.0,2.29098559]
[1673398276700,0.191,17493.0,17492.0,2.30198559]
[1673398277243,0.191,17493.0,17492.0,2.30204678]
[1673398277577,0.191,17493.0,17492.0,0.29835062]
[1673398277765,1.131517,17493.0,17492.0,0.29835062]
[1673398278542,0.772762,17493.0,17492.0,0.29835062]
[1673398279056,0.191,17493.0,17492.0,0.87003962]
[1673398279585,0.549755,17493.0,17492.0,0.87003962]
[1673398280355,0.191,17493.0,17492.0,0.87003962]
[1673398280604,0.191,17493.0,17492.0,1.17003962]
[1673398282913,0.191,17493.0,17492.0,1.77414395]
[1673398283171,0.191,17493.0,17492.0,2.34583295]
[1673398284509,0.176,17493.0,17492.0,2.34583295]
[1673398284763,0.176,17493.0,17492.0,2.34589414]
[1673398285281,0.176,17493.0,17492.0,2.34583295]
[1673398285798,0.176,17493.0,17492.0,2.54583295]
[1673398288652,0.176,17493.0,17492.0,2.54589414]
[1673398288653,0.1378,17493.0,17492.0,2.54589414]
[1673398288864,0.029,17493.0,17492.0,2.54583295]
[1673398289702,0.029,17493.0,17492.0,2.90464914]
[1673398291115,0.029,17493.0,17492.0,3.19047914]
[1673398291357,0.029,17493.0,17492.0,2.83166295]
[1673398292414,0.029,17493.0,17492.0,2.22755862]
[1673398292672,0.029,17493.0,17492.0,3.18026129]
[1673398292924,0.029,17493.0,17492.0,3.84902271]
[1673398293183,0.029,17493.0,17492.0,3.18026129]
[1673398293435,0.029,17493.0,17492.0,3.85278122]
[1673398293689,0.029,17493.0,17492.0,3.18026129]
[1673398294199,0.029,17493.0,17492.0,3.81500667]
[1673398294454,0.029,17493.0,17492.0,3.18026129]
[1673398294719,0.029,17493.0,17492.0,3.17972248]
[1673398296472,0.029,17493.0,17492.0,3.90431542]
[1673398296995,0.029,17493.0,17492.0,3.60425423]
[1673398298240,0.029,17493.0,17492.0,3.24556042]
[1673398298499,0.029,17493.0,17492.0,3.54556042]
[1673398298762,0.21798,17493.0,17492.0,2.36560381]
[1673398299021,0.029,17493.0,17492.0,2.36560381]
[1673398299534,0.21798,17493.0,17492.0,2.36560381]
[1673398299817,0.21798,17493.0,17492.0,1.64101087]
[1673398300100,1.01892697,17493.0,17492.0,1.64101087]
[1673398301664,1.01892697,17493.0,17492.0,0.49763287]
[1673398301939,1.92009061,17493.0,17492.0,0.49763287]
[1673398302751,1.37768197,17493.0,17492.0,0.49763287]
[1673398303006,1.37758197,17493.0,17492.0,0.49763287]
[1673398304265,1.01882697,17493.0,17492.0,0.49763287]
[1673398304515,1.37758197,17493.0,17492.0,0.49763287]
[1673398306845,1.91999061,17493.0,17492.0,0.49763287]
[1673398307115,2.09099196,17493.0,17492.0,0.49763287]
[1673398307409,1.54858332,17493.0,17492.0,0.49763287]
[1673398308207,1.54858332,17493.0,17492.0,0.49769406]
[1673398308510,1.54858332,17493.0,17492.0,0.49763287]
[1673398309514,1.34858332,17493.0,17492.0,0.29763287]
[1673398310275,1.84276323,17493.0,17492.0,0.29763287]
[1673398310521,3.56696614,17493.0,17492.0,0.29763287]
[1673398310777,2.85695481,17493.0,17492.0,0.29763287]
[1673398311048,3.45889569,17493.0,17492.0,0.29763287]
[1673398311286,2.91989053,17493.0,17492.0,0.29763287]
[1673398312351,3.91320894,17493.0,17492.0,0.29163287]
[1673398312873,4.56925724,17493.0,17492.0,0.29163287]
[1673398313144,4.25526823,17493.0,17492.0,0.29163287]
[1673398313390,4.48486594,17493.0,17492.0,0.29163287]
[1673398313728,5.14031552,17493.0,17492.0,0.29163287]
[1673398313903,5.37339169,17493.0,17492.0,0.29163287]
[1673398314187,4.4855815,17493.0,17492.0,0.29163287]
[1673398314439,5.02913734,17493.0,17492.0,0.29163287]
[1673398315187,5.37111266,17493.0,17492.0,0.29163287]
[1673398315946,4.75335088,17493.0,17492.0,0.29163287]
[1673398316237,5.00981933,17493.0,17492.0,0.29163287]
[1673398316468,4.58222807,17493.0,17492.0,0.29163287]
[1673398316711,4.01057107,17493.0,17492.0,0.29163287]
[1673398317796,4.00857107,17493.0,17492.0,0.29163287]
[1673398318062,1.5673217,17493.0,17492.0,0.29163287]
[1673398318884,2.71099985,17493.0,17492.0,0.29163287]
[1673398319143,1.56732291,17493.0,17492.0,0.29163287]
[1673398319404,2.13897991,17493.0,17492.0,0.29163287]
[1673398319911,1.56732291,17493.0,17492.0,0.29163287]
[1673398320168,1.86732291,17493.0,17492.0,0.29163287]
[1673398322298,5.52859052,17493.0,17492.0,0.29163287]
[1673398322550,6.1873245,17493.0,17492.0,0.29163287]
[1673398322956,5.76849585,17493.0,17492.0,0.29163287]
[1673398323171,4.97986394,17493.0,17492.0,0.29163287]
[1673398323426,3.66505127,17493.0,17492.0,0.29163287]
[1673398323865,4.40817212,17493.0,17492.0,0.29163287]
[1673398325239,3.09337748,17493.0,17492.0,0.29163287]
[1673398325464,4.40817247,17493.0,17492.0,0.29163287]
[1673398325910,3.09337844,17493.0,17492.0,0.29163287]
[1673398326131,4.23708137,17493.0,17492.0,0.29163287]
[1673398326358,4.40817857,17493.0,17492.0,0.29163287]
[1673398326581,3.09337706,17493.0,17492.0,0.29163287]
[1673398326822,2.5543719,17493.0,17492.0,0.29163287]
[1673398327040,1.6827149,17493.0,17492.0,0.29163287]
[1673398327677,1.31736572,17493.0,17492.0,0.29163287]
[1673398328148,1.61736572,17493.0,17492.0,0.29163287]
[1673398328369,2.41272006,17493.0,17492.0,0.29163287]
[1673398328589,1.8737149,17493.0,17492.0,0.29163287]
[1673398328808,2.41272006,17493.0,17492.0,0.29163287]
[1673398329591,0.91498092,17493.0,17492.0,1.08431299]
[1673398329846,0.91498092,17493.0,17492.0,0.8467151]
[1673398329847,0.129,17493.0,17492.0,0.8467151]
[1673398330964,0.129,17493.0,17492.0,0.84665391]
[1673398331481,0.129,17493.0,17492.0,0.8467151]
[1673398331737,0.129,17493.0,17492.0,1.1467151]
[1673398332278,0.129,17493.0,17492.0,0.8467151]
[1673398332793,0.129,17493.0,17492.0,0.84665391]
[1673398333847,0.129,17493.0,17492.0,0.8467151]
[1673398335234,0.129,17493.0,17492.0,1.1467151]
[1673398335493,0.129,17493.0,17492.0,1.7184041]
[1673398336840,0.129,17493.0,17492.0,2.2900931]
[1673398337399,0.129,17493.0,17492.0,2.5900931]
[1673398337664,0.129,17493.0,17492.0,2.2900931]
[1673398338217,0.129,17493.0,17492.0,2.29003191]
[1673398338483,0.129,17493.0,17492.0,1.99003191]
[1673398339305,0.129,17493.0,17492.0,2.29003191]
[1673398340131,0.129,17493.0,17492.0,2.64878691]
[1673398340403,0.129,17493.0,17492.0,2.29003191]
[1673398341954,0.129,17493.0,17492.0,2.2900931]
[1673398342972,0.129,17493.0,17492.0,2.6488481]
[1673398343223,0.129,17493.0,17492.0,2.2900931]
[1673398343752,0.129,17493.0,17492.0,2.0400931]
[1673398344537,0.129,17493.0,17492.0,1.7400931]
[1673398344797,0.129,17493.0,17492.0,1.74003191]
[1673398345300,0.99341067,17493.0,17492.0,1.16834291]
[1673398345576,1.35216567,17493.0,17492.0,0.04163287]
[1673398345839,1.24975985,17493.0,17492.0,0.04163287]
[1673398346099,1.60851485,17493.0,17492.0,0.04163287]
[1673398347126,1.60851485,17493.0,17492.0,0.04163287]
[1673398347661,2.75213093,17493.0,17492.0,0.04163287]
[1673398347912,2.75213059,17493.0,17492.0,0.04163287]
[1673398348165,1.60851485,17493.0,17492.0,0.04163287]
[1673398348433,1.24975985,17493.0,17492.0,0.04163287]
[1673398348687,1.60851485,17493.0,17492.0,0.04163287]
[1673398350003,1.24975985,17493.0,17492.0,0.04163287]
[1673398350292,1.60851485,17493.0,17492.0,0.04163287]
[1673398350819,1.24975985,17493.0,17492.0,0.04163287]
[1673398351068,1.60851485,17493.0,17492.0,0.04163287]
[1673398351826,2.75213086,17493.0,17492.0,0.04163287]
[1673398353092,1.60851485,17493.0,17492.0,0.04163287]
[1673398353357,0.99341067,17493.0,17492.0,0.58434593]
[1673398353607,1.35216567,17493.0,17492.0,0.58434593]
[1673398354355,0.99341067,17493.0,17492.0,0.54771306]
[1673398354629,1.35216567,17493.0,17492.0,0.54771306]
[1673398355451,1.35216567,17493.0,17492.0,0.005]
[1673398356406,1.60851485,17493.0,17492.0,0.005]
[1673398357426,2.75211081,17493.0,17492.0,0.005]
[1673398358166,3.09408613,17493.0,17492.0,0.005]
[1673398358420,2.75244277,17493.0,17492.0,0.005]
[1673398358676,2.92320939,17493.0,17492.0,0.005]
[1673398358934,4.24633083,17493.0,17492.0,0.00489534]
[1673398359193,3.70732563,17493.0,17492.0,0.00489534]
[1673398359444,4.24632821,17493.0,17492.0,0.00489534]
[1673398360986,3.09445147,17493.0,17492.0,0.00489534]
[1673398361234,4.24508235,17493.0,17492.0,0.00489534]
[1673398363518,4.47476403,17493.0,17492.0,0.00489534]
[1673398365020,4.04717277,17493.0,17492.0,0.00489534]
[1673398365278,3.92529584,17493.0,17492.0,0.00489534]
[1673398365537,4.03429584,17493.0,17492.0,0.00489534]
[1673398365786,5.10402053,17493.0,17492.0,0.00489534]
[1673398366055,5.0707072,17493.0,17492.0,0.00489534]
[1673398366295,4.55714686,17493.0,17492.0,0.00489534]
[1673398366549,5.0707072,17493.0,17492.0,0.00489534]
[1673398367340,5.60598663,17493.0,17492.0,0.00489534]
[1673398367586,5.0707072,17493.0,17492.0,0.00489534]
[1673398368106,5.0707072,17493.0,17492.0,0.05405477]
[1673398368362,5.0707072,17493.0,17492.0,0.04584159]
[1673398368619,5.2880072,17493.0,17492.0,0.04584159]
[1673398369948,7.89061233,17493.0,17492.0,0.04584159]
[1673398370434,6.17487071,17493.0,17492.0,0.04584159]
[1673398370709,5.89923169,17493.0,17492.0,0.04584159]
[1673398371198,6.18434711,17493.0,17492.0,0.04584159]
[1673398371452,6.05534711,17493.0,17492.0,0.04584159]
[1673398371711,6.19034711,17493.0,17492.0,0.04584159]
[1673398371974,7.99272578,17493.0,17492.0,0.04584159]
[1673398372235,0.02165593,17491.0,17488.0,0.00015]
[1673398372512,0.59056909,17489.0,17488.0,0.64649419]
[1673398372766,2.76663075,17489.0,17488.0,0.64649419]
[1673398373024,3.37254882,17489.0,17488.0,0.64649419]
[1673398373303,3.37254882,17489.0,17488.0,0.00015]
[1673398373562,4.11540346,17489.0,17488.0,0.00015]
[1673398373834,3.94434462,17489.0,17488.0,0.6816523]
[1673398374085,0.79643187,17489.0,17487.0,0.04872249]
[1673398374346,0.71784076,17489.0,17488.0,0.56788128]
[1673398374644,0.53982162,17489.0,17488.0,0.56788128]
[1673398374856,0.53982162,17489.0,17486.0,0.57300865]
[1673398374857,0.73982162,17489.0,17486.0,0.57300865]
[1673398375133,0.358755,17488.0,17486.0,1.19784064]
[1673398375380,1.95558938,17489.0,17486.0,1.19784064]
[1673398375654,2.36338287,17489.0,17486.0,1.19784064]
[1673398375995,2.38231523,17489.0,17486.0,1.19784064]
[1673398376166,2.61999312,17489.0,17486.0,1.19784064]
[1673398376426,0.658755,17488.0,17486.0,1.19784064]
[1673398376675,0.358755,17487.0,17486.0,0.62595764]
[1673398376926,0.83677414,17488.0,17486.0,0.62595764]
[1673398377172,0.3,17488.0,17486.0,0.62595764]
[1673398377424,1.53095269,17488.0,17486.0,0.62595764]
[1673398377679,0.358755,17487.0,17486.0,0.62595764]
[1673398377928,1.19275252,17487.0,17486.0,0.00112565]
[1673398378199,1.05875252,17487.0,17486.0,0.00112565]
[1673398380294,1.19275252,17487.0,17486.0,0.00112565]
[1673398380577,1.42910185,17487.0,17486.0,0.00112565]
[1673398380839,2.29974261,17487.0,17486.0,0.00112565]
[1673398381183,3.12820586,17487.0,17486.0,0.00112565]
[1673398382430,3.87112751,17487.0,17486.0,0.00112565]
[1673398382642,4.04209293,17487.0,17486.0,0.00112565]
[1673398382951,3.69995779,17487.0,17486.0,0.25112565]
[1673398383199,3.44334754,17487.0,17486.0,0.25112565]
[1673398384012,3.69995779,17487.0,17486.0,0.25112565]
[1673398384789,2.99996027,17487.0,17486.0,0.25112565]
[1673398385068,3.56806213,17487.0,17486.0,0.25112565]
[1673398385321,3.31145188,17487.0,17486.0,0.25112565]
[1673398386737,0.3,17486.0,17483.0,0.34937748]
[1673398387003,2.50324955,17487.0,17484.0,1.09201993]
[1673398387004,0.358755,17485.0,17484.0,1.09201993]
[1673398387262,0.134,17487.0,17484.0,1.96397093]
[1673398387527,1.45086688,17488.0,17485.0,0.3]
[1673398387837,0.61486326,17488.0,17486.0,0.23759789]
[1673398388091,0.61486326,17488.0,17486.0,0.80946689]
[1673398388358,0.87056917,17490.0,17487.0,0.53681881]
[1673398388637,0.57562646,17489.0,17487.0,0.7744167]
[1673398388898,0.358755,17488.0,17487.0,0.53681881]
[1673398389445,0.57562646,17489.0,17487.0,1.10867181]
[1673398389701,0.57562646,17489.0,17487.0,0.571853]
[1673398389702,0.135,17488.0,17487.0,0.571853]
[1673398389958,0.57562646,17489.0,17487.0,0.571853]
[1673398390230,0.135,17488.0,17487.0,0.571853]
[1673398390542,1.41163008,17489.0,17487.0,0.571853]
[1673398390810,0.71162646,17489.0,17487.0,0.571853]
[1673398391064,0.71162646,17489.0,17487.0,1.1326221]
[1673398391574,0.358755,17488.0,17487.0,1.1326221]
[1673398392146,1.24763008,17489.0,17487.0,1.1326221]
[1673398392406,0.57562646,17489.0,17487.0,1.1326221]
[1673398392713,0.493755,17488.0,17487.0,1.1326221]
[1673398392984,0.358755,17488.0,17487.0,1.1326221]
[1673398393253,1.44763008,17489.0,17487.0,1.1326221]
[1673398393510,0.57562646,17489.0,17487.0,1.1326221]
[1673398393768,0.358755,17488.0,17487.0,1.1326221]
[1673398393988,0.135,17488.0,17487.0,1.1326221]
[1673398394281,1.11163008,17489.0,17487.0,1.1326221]
[1673398394282,0.74659201,17489.0,17487.0,1.1326221]
[1673398394535,0.88259201,17489.0,17487.0,1.1326221]
[1673398394797,0.358755,17488.0,17487.0,1.1326221]
[1673398395341,1.41859563,17489.0,17487.0,1.1326221]
[1673398395628,1.07152392,17488.0,17486.0,1.25798703]
[1673398395872,0.358755,17487.0,17486.0,1.25798703]
[1673398396120,1.38377254,17488.0,17486.0,1.25798703]
[1673398396373,0.71276892,17488.0,17486.0,1.20808186]
[1673398397655,0.84776892,17488.0,17486.0,1.20808186]
[1673398398470,1.01873447,17488.0,17486.0,1.20808186]
[1673398401304,0.358755,17487.0,17486.0,1.20808186]
[1673398401829,1.81134834,17488.0,17486.0,1.20808186]
[1673398402115,1.27534472,17488.0,17486.0,1.20808186]
[1673398402340,1.14034472,17488.0,17486.0,1.20808186]
[1673398402597,0.134,17487.0,17486.0,1.20808186]
[1673398402851,1.67634834,17488.0,17486.0,1.20808186]
[1673398403114,1.27534472,17488.0,17486.0,1.20808186]
[1673398403647,1.14034472,17488.0,17486.0,1.20808186]
[1673398404436,0.17096555,17487.0,17486.0,1.20808186]
[1673398404726,0.66372055,17487.0,17486.0,1.20808186]
[1673398404992,1.24634663,17487.0,17486.0,1.20808186]
[1673398405755,1.38034663,17487.0,17486.0,1.20808186]
[1673398406048,1.38034663,17487.0,17486.0,0.63622086]
[1673398406284,1.63695688,17487.0,17486.0,0.63622086]
[1673398407007,1.27820188,17487.0,17486.0,0.63622086]
[1673398407222,1.63695688,17487.0,17486.0,0.63622086]
[1673398407512,1.38034663,17487.0,17486.0,0.63610271]
[1673398407739,1.63695688,17487.0,17485.0,0.571898]
[1673398408001,1.63695688,17487.0,17485.0,1.25058874]
[1673398408002,0.358755,17486.0,17485.0,1.25058874]
[1673398408257,1.27820188,17487.0,17485.0,1.25058874]
[1673398408510,1.14420188,17487.0,17485.0,1.25058874]
[1673398409020,1.22720188,17487.0,17485.0,1.25058874]
[1673398410551,0.70662291,17486.0,17485.0,0.571898]
[1673398410805,1.23634346,17486.0,17484.0,1.2767078]
[1673398411053,0.358755,17485.0,17484.0,1.8486258]
[1673398411337,0.358755,17485.0,17483.0,1.24747433]
[1673398411583,0.358755,17485.0,17483.0,0.0494596]
[1673398411584,0.358755,17484.0,17483.0,0.0494596]
[1673398411842,1.63893881,17484.0,17483.0,0.0494596]
[1673398412099,1.63893881,17484.0,17483.0,0.00056413]
[1673398412100,2.19554906,17484.0,17483.0,0.00056413]
[1673398412398,3.33970892,17484.0,17483.0,0.00156413]
[1673398412621,3.33970892,17484.0,17483.0,0.00056413]
[1673398412622,3.51087864,17484.0,17483.0,0.00056413]
[1673398413357,3.68218537,17484.0,17483.0,0.00056413]
[1673398413600,3.3500501,17484.0,17483.0,0.00056413]
[1673398414109,2.20585959,17484.0,17483.0,0.00056413]
[1673398414355,3.34004285,17484.0,17483.0,0.00056413]
[1673398414609,3.47404285,17484.0,17483.0,0.00056413]
[1673398414857,2.32985959,17484.0,17483.0,0.00056413]
[1673398415105,2.07324934,17484.0,17483.0,0.00056413]
[1673398415867,1.53724572,17484.0,17483.0,0.00056413]
[1673398416129,2.07324934,17484.0,17483.0,0.00056413]
[1673398417167,2.16162257,17484.0,17483.0,0.00056413]
[1673398417421,4.13439684,17484.0,17483.0,0.00056413]
[1673398417710,2.99018382,17484.0,17483.0,0.00056413]
[1673398419293,5.65964518,17484.0,17483.0,0.00056413]
[1673398420344,0.3,17483.0,17482.0,0.00032039]
[1673398420614,5.13478304,17483.0,17482.0,0.00032039]
[1673398420863,5.83150412,17483.0,17482.0,0.00032039]
[1673398421138,5.99480412,17483.0,17482.0,0.00032039]
[1673398421441,5.48160121,17483.0,17482.0,0.00032039]
[1673398421922,5.61760121,17483.0,17482.0,0.00032039]
[1673398422430,5.48160121,17483.0,17482.0,0.00032039]
[1673398423197,5.90876124,17483.0,17482.0,0.00032039]
[1673398423448,5.90876124,17483.0,17477.0,0.59735056]
[1673398423449,0.9029,17482.0,17477.0,0.59735056]
[1673398423704,2.34426885,17481.0,17477.0,0.59735056]
[1673398423960,1.32928189,17480.0,17477.0,0.05098984]
[1673398424260,0.79153826,17479.0,17477.0,0.05098984]
[1673398424502,0.358755,17478.0,17477.0,0.05098984]
[1673398425028,0.358755,17478.0,17477.0,0.00250774]
[1673398425285,1.11870015,17479.0,17477.0,0.00250774]
[1673398425537,0.134,17478.0,17477.0,0.00250774]
[1673398426770,0.68591689,17479.0,17477.0,0.30250774]
[1673398428384,0.358755,17478.0,17477.0,0.00250774]
[1673398428632,1.17100669,17479.0,17477.0,0.01250774]
[1673398428893,0.74691689,17479.0,17477.0,0.01250774]
[1673398429665,0.358755,17478.0,17477.0,0.00250774]
[1673398429922,0.95975035,17478.0,17477.0,0.01250774]
[1673398430200,0.60099535,17478.0,17477.0,0.01250774]
[1673398430480,0.872105,17480.0,17477.0,0.64148083]
[1673398430481,0.72344325,17480.0,17477.0,0.64148083]
[1673398430736,0.061,17479.0,17477.0,0.88907872]
[1673398430970,0.061,17479.0,17477.0,0.64148083]
[1673398431228,0.061,17478.0,17477.0,0.65148083]
[1673398431490,0.51493747,17479.0,17477.0,0.64148083]
[1673398432292,0.51493747,17479.0,17477.0,0.64265375]
[1673398432540,0.57593747,17479.0,17477.0,0.65148083]
[1673398432808,0.57593747,17479.0,17478.0,0.55617516]
[1673398433129,0.57593747,17479.0,17478.0,0.85617516]
[1673398433316,0.57593747,17479.0,17478.0,0.55617516]
[1673398433844,0.51493747,17479.0,17478.0,0.55617516]
[1673398434097,0.57593747,17479.0,17478.0,0.56617516]
[1673398435360,0.061,17479.0,17478.0,0.56617516]
[1673398438165,0.63204973,17479.0,17478.0,0.56617516]
[1673398438422,0.63204973,17479.0,17478.0,0.01]
[1673398440013,0.99080473,17479.0,17478.0,0.01]
[1673398441548,0.63204973,17479.0,17478.0,0.01]
[1673398442557,0.76300304,17479.0,17478.0,0.01]
[1673398442801,1.19935992,17479.0,17478.0,0.01]
[1673398443077,1.62282273,17479.0,17478.0,0.01]
[1673398443365,2.19493773,17479.0,17478.0,0.01]
[1673398444088,2.09301796,17479.0,17478.0,0.01]
[1673398444341,2.86450122,17479.0,17478.0,0.01]
[1673398444625,2.69363526,17479.0,17478.0,0.01]
[1673398447178,2.86450122,17479.0,17478.0,0.00988353]
[1673398448161,3.12080017,17479.0,17478.0,0.00988353]
[1673398448730,2.52018287,17479.0,17478.0,0.00988353]
[1673398449195,2.69104884,17479.0,17478.0,0.00988353]
[1673398449450,3.83568018,17479.0,17478.0,0.00988353]
[1673398449704,4.43033583,17479.0,17478.0,0.00988353]
[1673398449964,3.28570449,17479.0,17478.0,0.00988353]
[1673398451004,3.11489191,17479.0,17478.0,0.00988353]
[1673398451253,4.60119876,17479.0,17478.0,0.00988353]
[1673398451491,4.43059114,17479.0,17478.0,0.00988353]
[1673398452250,2.71384295,17479.0,17478.0,0.00988353]
[1673398452503,2.54314203,17479.0,17478.0,0.00988353]
[1673398452770,2.71384295,17479.0,17478.0,0.00988353]
[1673398453034,3.8584569,17479.0,17478.0,0.00988353]
[1673398453285,4.62984623,17479.0,17478.0,0.00988353]
[1673398453584,5.36576123,17479.0,17478.0,0.00988353]
[1673398453809,4.42937365,17479.0,17478.0,0.00988353]
[1673398454330,0.17556247,17477.0,17476.0,0.05256399]
[1673398454592,1.14804874,17477.0,17476.0,0.05256399]
[1673398454810,1.14804874,17477.0,17476.0,0.00460527]
[1673398454811,0.70540088,17477.0,17476.0,0.00460527]
[1673398455635,1.96045093,17477.0,17476.0,0.00460527]
[1673398455894,1.59788238,17477.0,17476.0,0.01160527]
[1673398456425,2.04088648,17477.0,17476.0,0.01160527]
[1673398456684,2.30305329,17477.0,17476.0,0.25460527]
[1673398456948,2.03990355,17477.0,17476.0,0.28755008]
[1673398457220,3.35567412,17477.0,17476.0,0.28755008]
[1673398457489,3.35549169,17477.0,17476.0,0.28755008]
[1673398457752,2.91267002,17477.0,17476.0,0.28755008]
[1673398458522,2.91267002,17477.0,17476.0,0.28555008]
[1673398459314,2.91266349,17477.0,17476.0,0.28555008]
[1673398459834,1.23829235,17477.0,17476.0,0.28555008]
[1673398460654,2.2829607,17477.0,17476.0,0.28555008]
[1673398460913,1.49704735,17477.0,17476.0,0.28555008]
[1673398461176,1.13829235,17477.0,17476.0,0.28555008]
[1673398462212,1.13829235,17477.0,17476.0,0.28537227]
[1673398463020,2.81265274,17477.0,17476.0,0.28537227]
[1673398463253,2.98318766,17477.0,17476.0,0.28537227]
[1673398463477,3.68095003,17477.0,17476.0,0.28537227]
[1673398463741,4.5968118,17477.0,17476.0,0.28537227]
[1673398464807,3.99627312,17477.0,17476.0,0.28537227]
[1673398465389,3.99627496,17477.0,17476.0,0.28537227]
[1673398465675,3.82593357,17477.0,17476.0,0.28537227]
[1673398466470,4.2971872,17477.0,17476.0,0.28537227]
[1673398466745,4.89701908,17477.0,17476.0,0.28537227]
[1673398467010,4.89697552,17477.0,17476.0,0.28537227]
[1673398467263,4.89697707,17477.0,17476.0,0.28537227]